bitfinex-derivatives/quotes_SOLF0:USTF0_20260114
["timestamp","ask_amount","ask_price","bid_price","bid_amount"]
[1768362984865,3.13383001,146.19,146.11,6.1631]
[1768362985271,3.13383001,146.18,146.11,6.1631]
[1768362988776,3.13383001,146.2,146.12,6.1629]
[1768362989165,9.29343001,146.2,146.12,6.1629]
[1768362989874,3.13383001,146.19,146.12,6.1629]
[1768362990979,3.13383001,146.16,146.01,198.24191823]
[1768362991179,3.51890677,146.14,146.04,95.9214]
[1768362991478,3.13383001,146.15,146.05,95.9141]
[1768362992480,87.51273678,146.17,146.08,6.1645]
[1768362993175,6.65273678,146.17,146.08,6.1645]
[1768362993480,2.25024029,146.15,146.08,6.1645]
[1768362999280,2.25024029,146.15,146.04,95.9214]
[1768362999583,2.25024029,146.15,146.05,2.25024029]
[1768362999779,2.25024029,146.15,146.04,95.9214]
[1768362999984,2.25024029,146.15,146.04,98.17164029]
[1768362999985,5.45870016,146.15,146.04,98.17164029]
[1768363000376,2.25024029,146.13,146.04,98.17164029]
[1768363000778,2.25024029,146.13,146.07,6.1649]
[1768363003190,3.20845987,146.13,146.05,8.41574029]
[1768363003393,2.25024029,146.12,146.05,6.1655]
[1768363004801,3.20845987,146.11,146.02,80.86]
[1768363005003,3.20845987,146.11,146.02,83.11024029]
[1768363005803,3.20845987,146.11,146.03,6.1667]
[1768363005994,3.20845987,146.11,146.02,83.11024029]
[1768363006796,3.20845987,146.11,146.04,6.1662]
[1768363007506,3.20845987,146.11,146.05,6.1657]
[1768363008104,3.20845987,146.13,146.05,2.25024029]
[1768363008303,2.25024029,146.14,146.05,2.25024029]
[1768363008503,5.45870016,146.14,146.05,2.25024029]
[1768363009403,2.25024029,146.15,146.08,6.1644]
[1768363009798,5.45870016,146.15,146.08,6.1644]
[1768363011004,80.9,146.18,146.07,2.25024029]
[1768363011005,3.20845987,146.18,146.07,2.25024029]
[1768363011198,3.20845987,146.18,146.07,80.9]
[1768363011400,5.45870016,146.18,146.09,2.25024029]
[1768363012108,3.20845987,146.17,146.07,80.9]
[1768363012299,3.20845987,146.17,146.09,2.25024029]
[1768363012895,3.20845987,146.17,146.11,6.1634]
[1768363015912,2.25024029,146.18,146.09,98.13544029]
[1768363016211,2.25024029,146.18,146.09,95.8852]
[1768363016406,2.25024029,146.18,146.1,2.25024029]
[1768363017810,2.25024029,146.18,146.12,6.1629]
[1768363019208,5.45870016,146.18,146.12,6.1629]
[1768363022808,5.45870016,146.18,146.1,8.41374029]
[1768363023007,5.45870016,146.18,146.1,2.25024029]
[1768363023808,5.45870016,146.18,146.11,6.1631]
[1768363024815,3.20845987,146.22,146.1,2.25024029]
[1768363025117,3.20845987,146.24,146.16,6.1612]
[1768363025415,3.20845987,146.24,146.17,8.41084029]
[1768363025615,2.25024029,146.26,146.17,2.25024029]
[1768363025813,3.22952279,146.25,146.17,2.25024029]
[1768363026112,3.22952279,146.25,146.18,6.1602]
[1768363027217,3.22952279,146.25,146.17,2.25024029]
[1768363028216,3.22952279,146.25,146.16,6.161]
[1768363028510,3.22952279,146.25,146.17,2.25024029]
[1768363029020,3.22952279,146.25,146.16,6.161]
[1768363029217,3.22952279,146.25,146.17,2.25024029]
[1768363031521,3.22952279,146.25,146.17,8.41094029]
[1768363032123,3.22952279,146.25,146.17,6.1607]
[1768363033724,3.22952279,146.21,146.13,2.25024029]
[1768363033920,5.47976308,146.26,146.17,2.25024029]
[1768363034118,3.22952279,146.25,146.17,2.25024029]
[1768363034924,3.22952279,146.25,146.17,8.41104029]
[1768363035614,336.27768284,146.3,146.18,95.8273]
[1768363035615,3.22952279,146.28,146.18,95.8273]
[1768363035917,3.22952279,146.31,146.23,2.25024029]
[1768363036117,5.47976308,146.34,146.25,2.25024029]
[1768363036323,5.47976308,146.34,146.26,6.157]
[1768363037425,3.22952279,146.34,146.27,6.1565]
[1768363037634,3.22952279,146.34,146.27,8.40674029]
[1768363038229,3.22952279,146.34,146.27,2.25024029]
[1768363039124,3.22952279,146.34,146.26,2.25024029]
[1768363040932,3.22952279,146.34,146.26,6.1569]
[1768363041125,3.22952279,146.34,146.26,8.40714029]
[1768363041833,3.22952279,146.34,146.26,6.1569]
[1768363042028,3.16868929,146.36,146.29,2.25024029]
[1768363042528,3.16868929,146.36,146.3,2.25024029]
[1768363043029,3.16868929,146.36,146.3,8.40534029]
[1768363043230,3.16868929,146.38,146.3,6.1551]
[1768363043421,3.16868929,146.38,146.3,8.40534029]
[1768363045333,5.41892958,146.38,146.3,8.40534029]
[1768363046820,5.41892958,146.38,146.3,6.1551]
[1768363052037,3.16868929,146.38,146.3,6.1551]
[1768363052241,5.41892958,146.38,146.3,6.1551]
[1768363052835,5.41892958,146.38,146.31,6.1549]
[1768363053532,3.16868929,146.38,146.28,3.50456838]
[1768363054232,3.16868929,146.37,146.3,6.1553]
[1768363054434,3.16868929,146.37,146.27,3.50456838]
[1768363054840,3.16868929,146.36,146.28,6.1559]
[1768363055038,3.16868929,146.35,146.25,3.50456838]
[1768363055241,3.16868929,146.35,146.25,99.28496838]
[1768363056140,3.16868929,146.35,146.29,6.1556]
[1768363056644,6.152,146.38,146.29,6.1556]
[1768363056838,3.03472787,146.38,146.3,6.1552]
[1768363060339,3.03472787,146.38,146.31,6.1546]
[1768363066147,3.03472787,146.4,146.33,6.1539]
[1768363066347,3.03472787,146.39,146.33,6.1539]
[1768363066744,3.03472787,146.39,146.29,180.03696838]
[1768363067742,3.03472787,146.39,146.33,6.154]
[1768363071648,3.03472787,146.39,146.29,84.28456838]
[1768363071850,6.53929625,146.39,146.29,84.28456838]
[1768363072155,3.03472787,146.38,146.29,84.28456838]
[1768363072352,3.03472787,146.38,146.32,6.1545]
[1768363073753,3.03472787,146.38,146.29,80.78]
[1768363074749,3.03472787,146.38,146.32,6.1545]
[1768363076654,3.03472787,146.4,146.29,176.5336]
[1768363077856,3.03472787,146.4,146.33,6.1539]
[1768363078252,3.03472787,146.4,146.31,95.7438]
[1768363079256,3.03472787,146.4,146.34,6.1536]
[1768363080153,3.03472787,146.4,146.32,6.1542]
[1768363082255,3.50456838,146.42,146.31,99.24646838]
[1768363082256,3.03472787,146.42,146.31,99.24646838]
[1768363083462,9.18412787,146.45,146.33,99.23306838]
[1768363083660,3.03472787,146.45,146.34,176.4812]
[1768363084963,3.03472787,146.45,146.38,6.1518]
[1768363087465,285.73299105,146.49,146.34,80.76]
[1768363087466,3.2064466,146.43,146.34,80.76]
[1768363088760,3.2064466,146.43,146.36,6.1528]
[1768363090662,3.2064466,146.43,146.34,6.1534]
[1768363090867,3.2064466,146.41,146.34,6.1534]
[1768363091768,3.2064466,146.4,146.32,80.74]
[1768363092459,3.2064466,146.39,146.32,80.74]
[1768363093864,3.2064466,146.39,146.33,6.154]
[1768363095868,3.2064466,146.39,146.32,80.74]
[1768363096165,3.2064466,146.39,146.29,84.24456838]
[1768363096670,3.2064466,146.38,146.29,80.74]
[1768363097971,3.2064466,146.38,146.31,6.1548]
[1768363098272,3.15553445,146.42,146.3,99.25516838]
[1768363098571,3.15553445,146.42,146.31,3.50456838]
[1768363099871,3.15553445,146.42,146.33,6.154]
[1768363100072,3.15553445,146.41,146.33,6.154]
[1768363101071,6.66010283,146.4,146.31,6.1548]
[1768363101268,3.15553445,146.39,146.31,6.1548]
[1768363102675,3.15553445,146.41,146.31,6.1548]
[1768363102873,3.15553445,146.4,146.31,6.1548]
[1768363104275,3.15553445,146.4,146.32,6.1544]
[1768363105778,3.15553445,146.4,146.3,6.1551]
[1768363106876,3.15553445,146.43,146.31,99.24576838]
[1768363108880,3.15553445,146.42,146.34,6.1535]
[1768363109793,3.15553445,146.42,146.32,6.1542]
[1768363110089,3.15553445,146.42,146.31,3.50456838]
[1768363110792,3.15553445,146.42,146.33,6.154]
[1768363110992,3.15553445,146.42,146.33,3.50456838]
[1768363111591,3.15553445,146.42,146.34,6.1535]
[1768363113299,3.15553445,146.42,146.34,8.39542968]
[1768363114197,3.15553445,146.44,146.35,6.1532]
[1768363114396,5.39746413,146.44,146.35,8.39512968]
[1768363114597,11.54706413,146.44,146.35,8.39512968]
[1768363114791,3.15553445,146.43,146.35,8.39512968]
[1768363116398,9.30553445,146.43,146.35,6.1532]
[1768363116698,3.24340538,146.42,146.35,6.1532]
[1768363116891,3.24340538,146.42,146.36,6.1527]
[1768363117093,3.24340538,146.42,146.34,2.24192968]
[1768363117997,3.24340538,146.42,146.34,8.39532968]
[1768363119900,6.1505,146.42,146.34,2.24192968]
[1768363120105,3.24340538,146.41,146.34,2.24192968]
[1768363121403,3.24340538,146.41,146.33,2.24192968]
[1768363121901,9.39420538,146.41,146.33,8.39602968]
[1768363122702,3.24340538,146.4,146.33,8.39602968]
[1768363123002,3.24340538,146.4,146.33,2.24192968]
[1768363123405,3.24340538,146.4,146.28,12.3122]
[1768363123606,3.24340538,146.4,146.33,2.24192968]
[1768363124301,3.24340538,146.4,146.32,2.24192968]
[1768363125802,3.24340538,146.4,146.33,6.1541]
[1768363127102,9.39360538,146.43,146.34,6.1537]
[1768363127301,3.24340538,146.42,146.34,8.39562968]
[1768363128205,3.24340538,146.42,146.34,6.1537]
[1768363128409,3.24340538,146.41,146.34,6.1537]
[1768363130708,3.24340538,146.41,146.33,6.154]
[1768363131413,3.24340538,146.41,146.3,95.7473]
[1768363131602,3.24340538,146.41,146.32,2.24192968]
[1768363132904,3.24340538,146.41,146.33,6.154]
[1768363135914,3.24340538,146.41,146.35,6.1532]
[1768363136108,3.24340538,146.41,146.34,2.24192968]
[1768363136510,3.24340538,146.41,146.34,8.39552968]
[1768363137209,3.24340538,146.41,146.34,6.1536]
[1768363137820,3.24340538,146.43,146.35,6.153]
[1768363140219,3.24340538,146.42,146.35,6.153]
[1768363141908,3.24340538,146.41,146.33,6.1538]
[1768363142115,3.24340538,146.41,146.33,8.39572968]
[1768363142622,3.24340538,146.41,146.33,6.1538]
[1768363142815,3.24340538,146.41,146.33,8.39572968]
[1768363143720,3.24340538,146.4,146.33,8.39572968]
[1768363143916,3.24340538,146.4,146.33,6.1538]
[1768363144116,3.24340538,146.4,146.33,8.39572968]
[1768363144723,3.24340538,146.39,146.31,6.1546]
[1768363145019,3.24340538,146.39,146.32,2.24192968]
[1768363146618,3.24340538,146.39,146.32,8.39642968]
[1768363148323,2.99152162,146.37,146.28,2.24192968]
[1768363149318,5.2334513,146.4,146.3,2.24192968]
[1768363149525,2.99152162,146.39,146.32,2.24192968]
[1768363151623,2.99152162,146.39,146.31,6.1549]
[1768363151827,2.99152162,146.39,146.31,8.39682968]
[1768363153429,2.99152162,146.38,146.31,6.1549]
[1768363154829,2.99152162,146.38,146.32,6.1545]
[1768363155030,2.99152162,146.38,146.3,2.24192968]
[1768363155430,2.99152162,146.38,146.33,6.1541]
[1768363159034,2.99152162,146.38,146.31,8.39652968]
[1768363160538,2.99152162,146.38,146.31,6.1546]
[1768363168539,5.2334513,146.38,146.31,6.1546]
[1768363169040,2.24192968,146.38,146.32,6.1545]
[1768363169941,9.13149831,146.39,146.28,95.7605]
[1768363170140,2.24192968,146.38,146.29,2.24192968]
[1768363171840,2.24192968,146.38,146.32,6.1545]
[1768363172941,2.97989831,146.39,146.29,2.24192968]
[1768363173143,5.22182799,146.39,146.3,95.7508]
[1768363173745,5.22182799,146.39,146.3,97.99272968]
[1768363174444,5.22182799,146.39,146.3,95.7508]
[1768363174634,5.22182799,146.39,146.3,97.99272968]
[1768363175340,2.97989831,146.39,146.3,95.7508]
[1768363175848,2.97989831,146.39,146.33,6.1539]
[1768363178148,3.13640839,146.41,146.3,99.25379913]
[1768363179845,3.13640839,146.41,146.34,6.1535]
[1768363180248,6.64060752,146.41,146.34,6.1535]
[1768363180750,3.13640839,146.4,146.34,6.1535]
[1768363181351,3.13640839,146.4,146.32,6.1542]
[1768363183147,3.13640839,146.39,146.32,6.1542]
[1768363190373,3.13640839,146.39,146.33,6.1541]
[1768363192169,3.13640839,146.39,146.31,6.1545]
[1768363192376,3.13640839,146.38,146.29,80.76]
[1768363193877,3.13640839,146.38,146.32,6.1545]
[1768363195575,3.13640839,146.36,146.3,6.155]
[1768363196074,3.13640839,146.36,146.29,80.76]
[1768363196375,3.13640839,146.36,146.29,86.9154]
[1768363197175,3.13640839,146.36,146.3,6.1552]
[1768363200475,3.13640839,146.34,146.25,80.76]
[1768363201178,3.13640839,146.34,146.28,6.1562]
[1768363201382,3.13640839,146.34,146.25,80.76]
[1768363201779,3.13640839,146.33,146.27,6.1566]
[1768363202081,3.13640839,146.33,146.25,80.76]
[1768363202282,3.13640839,146.32,146.23,95.7933]
[1768363202477,3.13640839,146.32,146.27,6.1566]
[1768363204086,3.13640839,146.32,146.25,6.1571]
[1768363204286,3.13640839,146.32,146.23,95.7933]
[1768363205882,3.13640839,146.32,146.22,95.8028]
[1768363206185,3.13640839,146.32,146.21,180.07339913]
[1768363206585,3.13640839,146.32,146.25,6.1574]
[1768363208889,3.13640839,146.32,146.26,6.157]
[1768363210590,3.13640839,146.32,146.27,6.1566]
[1768363211794,3.13640839,146.32,146.28,6.1561]
[1768363211989,3.13640839,146.32,146.25,95.782]
[1768363213094,3.50419913,146.34,146.29,6.1557]
[1768363213291,3.03239845,146.35,146.26,95.7763]
[1768363213687,3.03239845,146.35,146.29,6.1557]
[1768363218491,3.03239845,146.35,146.27,6.1562]
[1768363218699,3.03239845,146.35,146.25,99.28619913]
[1768363219999,3.23433459,146.34,146.28,6.156]
[1768363223201,3.23433459,146.34,146.27,6.1566]
[1768363229596,3.23433459,146.34,146.28,6.1561]
[1768363230090,3.23433459,146.34,146.29,6.1558]
[1768363231401,3.50419913,146.37,146.29,6.1558]
[1768363231710,3.23433459,146.36,146.29,6.1558]
[1768363231912,3.23433459,146.36,146.24,95.7871]
[1768363231913,3.23433459,146.42,146.32,3.50419913]
[1768363232409,9.38473459,146.42,146.34,6.1537]
[1768363232608,3.23433459,146.41,146.34,6.1537]
[1768363233010,3.23433459,146.39,146.28,3.50419913]
[1768363233200,3.23433459,146.39,146.27,99.26859913]
[1768363233796,3.23433459,146.37,146.27,95.7644]
[1768363234001,3.23433459,146.37,146.31,6.1546]
[1768363234406,3.23433459,146.37,146.26,84.28419913]
[1768363234407,3.23433459,146.37,146.26,80.78]
[1768363234707,3.23433459,146.36,146.29,6.1556]
[1768363237608,9.38743459,146.36,146.27,2.24396877]
[1768363237803,5.25717304,146.35,146.27,2.24396877]
[1768363238810,11.41057304,146.35,146.26,80.78]
[1768363239109,11.41057304,146.35,146.26,83.02396877]
[1768363239308,5.25717304,146.35,146.26,2.24396877]
[1768363240110,5.25717304,146.35,146.28,6.1561]
[1768363240712,3.01320427,146.34,146.26,6.1569]
[1768363240908,3.01320427,146.34,146.26,2.24396877]
[1768363241207,3.01320427,146.36,146.28,2.24396877]
[1768363241911,3.01320427,146.36,146.29,6.1557]
[1768363243205,3.01320427,146.42,146.3,176.5296]
[1768363243511,3.01320427,146.41,146.32,2.24396877]
[1768363244199,3.01320427,146.41,146.3,176.5296]
[1768363244405,3.01320427,146.41,146.33,2.24396877]
[1768363244602,3.01320427,146.4,146.33,2.24396877]
[1768363244808,3.01320427,146.4,146.33,8.39776877]
[1768363245807,3.01320427,146.4,146.33,6.1538]
[1768363247011,3.01320427,146.4,146.32,2.24396877]
[1768363247012,3.01320427,146.43,146.35,6.1531]
[1768363247212,5.25717304,146.43,146.34,2.24396877]
[1768363247808,3.01320427,146.43,146.34,2.24396877]
[1768363248007,5.25717304,146.43,146.34,2.24396877]
[1768363248209,3.01320427,146.42,146.34,2.24396877]
[1768363248708,3.01320427,146.42,146.33,95.7286]
[1768363249013,3.01320427,146.42,146.36,6.1526]
[1768363249815,3.01320427,146.42,146.34,2.24396877]
[1768363250414,3.01320427,146.41,146.34,6.1536]
[1768363250614,3.01320427,146.41,146.33,2.24396877]
[1768363251413,3.01320427,146.41,146.34,2.24396877]
[1768363251912,3.01320427,146.43,146.34,2.24396877]
[1768363252519,3.01320427,146.43,146.37,6.1522]
[1768363255218,5.25717304,146.45,146.37,6.1522]
[1768363255616,5.25717304,146.45,146.38,6.152]
[1768363256514,3.01320427,146.44,146.38,6.152]
[1768363257820,3.01320427,146.45,146.38,6.152]
[1768363258023,5.25717304,146.45,146.38,6.152]
[1768363258417,5.25717304,146.45,146.39,6.1516]
[1768363258719,3.01320427,146.45,146.39,6.1516]
[1768363260227,3.01320427,146.47,146.4,6.1511]
[1768363260434,3.01320427,146.47,146.38,2.24396877]
[1768363260928,3.01320427,146.47,146.41,6.1507]
[1768363262332,122.41744667,146.49,146.41,2.24396877]
[1768363262333,119.28325094,146.49,146.41,2.24396877]
[1768363263231,119.28325094,146.49,146.42,6.1503]
[1768363263426,2.24396877,146.48,146.42,6.1503]
[1768363263626,119.28325094,146.49,146.42,6.1503]
[1768363263934,2.24396877,146.48,146.42,6.1503]
[1768363264234,116.27004667,146.49,146.43,6.1498]
[1768363264435,118.51401544,146.49,146.43,6.1498]
[1768363264830,2.24396877,146.46,146.36,176.4486]
[1768363265029,3.15375809,146.45,146.37,2.24396877]
[1768363265330,3.15375809,146.43,146.35,8.39706877]
[1768363265932,3.15375809,146.43,146.35,6.1531]
[1768363266431,80.74,146.46,146.33,80.74]
[1768363266432,5.39772686,146.41,146.33,6.1538]
[1768363266935,5.39772686,146.41,146.31,2.24396877]
[1768363266936,2.24396877,146.39,146.31,2.24396877]
[1768363267335,5.39772686,146.39,146.29,80.74]
[1768363267522,5.39772686,146.39,146.3,2.24396877]
[1768363267728,5.39772686,146.39,146.31,6.1546]
[1768363267929,5.39772686,146.39,146.3,2.24396877]
[1768363268430,3.16997104,146.38,146.3,2.24396877]
[1768363268634,3.16997104,146.36,146.29,6.1556]
[1768363268834,3.16997104,146.36,146.27,2.24396877]
[1768363269135,3.16997104,146.43,146.31,2.24396877]
[1768363269333,3.16997104,146.4,146.28,95.763]
[1768363269535,3.16997104,146.39,146.31,2.24396877]
[1768363270129,3.16997104,146.48,146.34,95.7247]
[1768363270431,3.16997104,146.46,146.37,2.24396877]
[1768363270738,5.41393981,146.44,146.35,2.24396877]
[1768363271035,176.3702,146.49,146.37,2.24396877]
[1768363271036,2.24396877,146.46,146.37,2.24396877]
[1768363271238,5.41393981,146.46,146.37,2.24396877]
[1768363271429,3.16997104,146.46,146.37,2.24396877]
[1768363271737,3.16997104,146.45,146.37,2.24396877]
[1768363272233,3.16997104,146.45,146.36,6.1526]
[1768363272437,3.16997104,146.45,146.35,2.24396877]
[1768363272632,5.41393981,146.44,146.35,2.24396877]
[1768363272832,3.16997104,146.43,146.35,2.24396877]
[1768363273029,3.16997104,146.43,146.34,6.1536]
[1768363273240,5.41393981,146.42,146.34,2.24396877]
[1768363273436,5.41393981,146.42,146.32,6.1544]
[1768363273636,5.41393981,146.42,146.32,8.39836877]
[1768363274037,5.41393981,146.42,146.32,6.1544]
[1768363274239,3.16997104,146.41,146.32,6.1544]
[1768363274538,3.16997104,146.41,146.32,8.39836877]
[1768363274932,5.41393981,146.41,146.32,8.39836877]
[1768363275131,3.16997104,146.38,146.3,6.1552]
[1768363275535,5.41393981,146.37,146.28,8.40006877]
[1768363275742,3.16997104,146.36,146.28,8.40006877]
[1768363276039,3.16997104,146.36,146.28,6.1561]
[1768363277232,2.24396877,146.35,146.28,6.1561]
[1768363277436,2.24396877,146.35,146.26,6.1569]
[1768363277437,3.16997104,146.34,146.26,6.1569]
[1768363277840,3.16997104,146.34,146.27,6.1565]
[1768363280730,3.16997104,146.34,146.24,176.5264]
[1768363280731,2.24396877,146.42,146.32,95.7335]
[1768363280938,3.01663471,146.42,146.32,95.7366]
[1768363281243,3.01663471,146.42,146.34,2.24396877]
[1768363281431,3.01663471,146.42,146.33,2.24396877]
[1768363283036,3.01663471,146.42,146.34,6.1535]
[1768363283538,3.01663471,146.42,146.35,6.153]
[1768363286247,3.01663471,146.45,146.34,95.7196]
[1768363286745,3.01663471,146.45,146.35,95.718]
[1768363287842,3.01663471,146.45,146.38,6.1516]
[1768363288342,3.01663471,146.44,146.36,6.1526]
[1768363288942,9.16633471,146.44,146.36,6.1526]
[1768363289147,3.01663471,146.43,146.34,6.1534]
[1768363289945,3.01663471,146.42,146.32,6.1542]
[1768363290141,3.01663471,146.42,146.31,80.76]
[1768363291350,3.01663471,146.4,146.3,5.3379088]
[1768363291553,3.01663471,146.4,146.31,80.74]
[1768363292144,3.01663471,146.39,146.28,80.74]
[1768363293851,9.16843471,146.39,146.3,6.1553]
[1768363294350,3.01663471,146.41,146.28,176.5004]
[1768363294755,3.01663471,146.39,146.28,80.74]
[1768363296755,3.01663471,146.39,146.31,6.1549]
[1768363297554,3.01663471,146.39,146.29,6.1555]
[1768363297755,3.01663471,146.39,146.29,86.9155]
[1768363298352,3.18916209,146.37,146.29,86.9155]
[1768363298848,3.18916209,146.37,146.29,6.1555]
[1768363299750,9.33986209,146.42,146.3,95.7494]
[1768363299948,3.18916209,146.41,146.3,95.7494]
[1768363300156,3.18916209,146.4,146.31,6.1546]
[1768363300860,3.18916209,146.39,146.31,6.1546]
[1768363302964,3.18916209,146.41,146.3,95.7509]
[1768363303150,3.18916209,146.41,146.29,95.7535]
[1768363303351,3.18916209,146.41,146.3,3.50427684]
[1768363304663,3.18916209,146.41,146.32,6.1544]
[1768363306157,3.18916209,146.4,146.32,6.1544]
[1768363308058,3.18916209,146.39,146.3,6.1552]
[1768363308261,3.18916209,146.39,146.28,84.26427684]
[1768363309461,3.18916209,146.39,146.28,180.02457684]
[1768363309862,3.18916209,146.39,146.3,3.50427684]
[1768363310063,3.18916209,146.39,146.32,6.1545]
[1768363314862,3.18916209,146.39,146.3,6.1551]
[1768363316664,3.50427684,146.4,146.28,80.76]
[1768363316665,3.18916209,146.36,146.28,86.916]
[1768363316862,3.18916209,146.36,146.28,80.76]
[1768363317468,9.34206209,146.36,146.29,6.1558]
[1768363318571,3.18916209,146.35,146.29,6.1558]
[1768363319069,3.18916209,146.34,146.24,95.7901]
[1768363319370,3.18916209,146.34,146.23,180.05467684]
[1768363319763,3.18916209,146.34,146.25,3.50427684]
[1768363319963,3.18916209,146.34,146.23,180.05467684]
[1768363320164,9.34286209,146.34,146.25,6.1571]
[1768363320372,9.34286209,146.34,146.23,180.05467684]
[1768363320776,9.34286209,146.34,146.26,6.157]
[1768363321364,3.18916209,146.38,146.26,3.50427684]
[1768363322664,3.18916209,146.38,146.24,95.7868]
[1768363322860,6.1533,146.35,146.27,6.1563]
[1768363324072,3.18916209,146.36,146.27,6.1563]
[1768363324771,3.18916209,146.36,146.28,6.1562]
[1768363325370,3.26938852,146.38,146.26,3.50427684]
[1768363326776,3.26938852,146.37,146.3,6.1553]
[1768363327868,3.26938852,146.37,146.31,6.1548]
[1768363330880,3.26938852,146.37,146.29,6.1556]
[1768363331380,3.26938852,146.36,146.29,6.1556]
[1768363331969,3.26938852,146.36,146.27,99.27167684]
[1768363332170,3.26938852,146.38,146.27,99.27167684]
[1768363332873,9.42148852,146.38,146.31,6.1549]
[1768363334886,3.26938852,146.38,146.32,6.1543]
[1768363335075,3.26938852,146.38,146.29,3.50427684]
[1768363335475,3.26938852,146.38,146.3,6.155]
[1768363336883,6.1512,146.4,146.29,3.50427684]
[1768363337076,3.26938852,146.43,146.31,3.50427684]
[1768363337686,6.1512,146.4,146.32,6.1545]
[1768363337985,3.26938852,146.41,146.31,3.50427684]
[1768363338177,3.26938852,146.41,146.29,80.78]
[1768363338377,3.26938852,146.41,146.32,3.50427684]
[1768363338575,9.42018852,146.41,146.32,3.50427684]
[1768363338771,9.42018852,146.41,146.31,3.50427684]
[1768363339473,9.1558688,146.39,146.31,6.1548]
[1768363339887,3.0042688,146.37,146.26,191.43462157]
[1768363340885,6.1529,146.36,146.28,6.1562]
[1768363341090,3.0042688,146.37,146.27,3.50427684]
[1768363341486,3.0042688,146.4,146.29,3.50427684]
[1768363342084,3.0042688,146.4,146.31,6.1549]
[1768363342688,9.1554688,146.4,146.29,3.50427684]
[1768363343289,3.0042688,146.39,146.29,3.50427684]
[1768363343593,3.0042688,146.39,146.28,80.76]
[1768363344784,3.0042688,146.38,146.3,6.1553]
[1768363346289,6.1503,146.43,146.32,3.50427684]
[1768363346593,3.0042688,146.44,146.33,3.50427684]
[1768363346988,3.0042688,146.43,146.34,6.1535]
[1768363347185,3.0042688,146.43,146.33,99.23517684]
[1768363347385,3.0042688,146.43,146.35,3.50427684]
[1768363347598,3.0042688,146.46,146.37,6.1523]
[1768363348588,3.0042688,146.46,146.35,6.153]
[1768363348796,3.0042688,146.45,146.34,80.76]
[1768363349180,3.0042688,146.45,146.36,6.1526]
[1768363349887,83.7642688,146.48,146.37,95.7047]
[1768363350087,3.0042688,146.55,146.44,95.655]
[1768363350687,3.0042688,146.55,146.44,99.15927684]
[1768363350886,3.0042688,146.55,146.43,95.6616]
[1768363351089,3.0042688,146.55,146.42,176.4286]
[1768363351090,3.0042688,146.54,146.42,176.4286]
[1768363351286,3.0042688,146.56,146.42,176.428]
[1768363351492,3.0042688,146.52,146.42,80.76]
[1768363351698,3.0042688,146.51,146.42,80.76]
[1768363352196,95.5979,146.54,146.42,80.76]
[1768363352197,3.0042688,146.5,146.42,80.76]
[1768363352589,3.0042688,146.5,146.39,3.50427684]
[1768363352793,3.0042688,146.5,146.39,84.24427684]
[1768363353095,3.0042688,146.5,146.4,95.6819]
[1768363353703,3.0042688,146.5,146.39,84.24427684]
[1768363353906,3.0042688,146.48,146.39,80.74]
[1768363354289,6.50854564,146.47,146.39,80.74]
[1768363354694,6.50854564,146.47,146.37,80.74]
[1768363354891,3.0042688,146.47,146.36,3.50427684]
[1768363355095,3.0042688,146.47,146.37,80.74]
[1768363358100,3.17403176,146.46,146.37,80.74]
[1768363358403,6.6783086,146.46,146.37,80.74]
[1768363358601,3.17403176,146.45,146.37,80.74]
[1768363359700,3.17403176,146.45,146.32,3.50427684]
[1768363359701,3.17403176,146.43,146.32,3.50427684]
[1768363359908,3.17403176,146.43,146.33,80.74]
[1768363360096,3.17403176,146.42,146.33,80.74]
[1768363361403,5.41605399,146.42,146.33,82.98202223]
[1768363362304,5.41605399,146.42,146.33,86.8941]
[1768363362501,2.24202223,146.42,146.33,89.13612223]
[1768363362702,2.24202223,146.42,146.33,86.8941]
[1768363363003,2.24202223,146.44,146.34,8.39542223]
[1768363363203,3.17403176,146.41,146.33,80.74]
[1768363363405,5.41605399,146.41,146.33,80.74]
[1768363363901,11.56705399,146.41,146.33,80.74]
[1768363364108,2.24202223,146.39,146.33,80.74]
[1768363364308,2.24202223,146.37,146.26,287.21072157]
[1768363364501,3.17403176,146.37,146.27,82.98202223]
[1768363364698,3.17403176,146.37,146.27,89.13842223]
[1768363364903,2.24202223,146.36,146.27,86.8964]
[1768363365106,2.24202223,146.36,146.27,89.13842223]
[1768363365905,5.41605399,146.36,146.27,80.74]
[1768363366306,2.24202223,146.34,146.27,80.74]
[1768363366506,2.24202223,146.34,146.26,191.43462157]
[1768363366507,5.41605399,146.34,146.26,191.43462157]
[1768363367513,3.17403176,146.34,146.25,86.8973]